fUSD/lending_fUSD_20250416
["ID","MTS","AMOUNT","RATE_DAILY","PERIOD"]
[358176708,1744816346206,-500.0,0.00052876,120]
[358176709,1744816346215,-500.0,0.00052876,120]
[358176710,1744816346224,-500.0,0.00052876,120]
[358176711,1744816346234,-500.0,0.00052876,120]
[358176712,1744816346243,-904.17,0.00052876,120]
[358176713,1744816346252,-500.0,0.00052876,120]
[358176714,1744816346263,-298.50406746,0.00052876,120]
[358176715,1744816346272,-500.0,0.00052876,120]
[358176716,1744816346281,-500.0,0.00052876,120]
[358176717,1744816346291,-500.0,0.00052876,120]
[358176718,1744816346300,-980.77,0.00052876,120]
[358176719,1744816346310,-500.0,0.00052876,120]
[358176720,1744816346320,-500.0,0.00052876,120]
[358176721,1744816346329,-500.0,0.00052876,120]
[358176722,1744816346339,-500.0,0.00052876,120]
[358176723,1744816346347,-500.0,0.00052876,120]
[358176724,1744816346356,-500.0,0.00052876,120]
[358176725,1744816346366,-500.0,0.00052876,120]
[358176726,1744816346375,-500.0,0.00052876,120]
[358176727,1744816346384,-1864.604686,0.00052876,120]
[358176728,1744816346394,-2000.0,0.00052876,120]
[358176729,1744816346404,-500.0,0.00052876,120]
[358176730,1744816346414,-500.0,0.00052876,120]
[358176731,1744816346424,-500.0,0.00052876,120]
[358176732,1744816346434,-756.77,0.00052876,120]
[358176733,1744816346443,-500.0,0.00052876,120]
[358176734,1744816346453,-500.0,0.00052876,120]
[358176735,1744816346462,-1324.33,0.00052876,120]
[358176736,1744816346473,-501.63,0.00052876,120]
[358176737,1744816346482,-983.87,0.00052876,120]
[358176738,1744816346492,-774.19,0.00052876,120]
[358176739,1744816346502,-500.0,0.00052876,120]
[358176740,1744816346512,-519.62,0.00052876,120]
[358176741,1744816346526,-500.0,0.00052876,120]
[358176742,1744816346535,-500.0,0.00052876,120]
[358176743,1744816346544,-2150.43,0.00052876,120]
[358176744,1744816346554,-500.0,0.00052876,120]
[358176745,1744816346563,-1188.94,0.00052876,120]
[358176746,1744816346573,-500.0,0.00052876,3]
[358176747,1744816346582,-695.81,0.00052876,118]
[358176748,1744816346591,-2664.25,0.00052876,120]
[358176749,1744816346600,-500.0,0.00052876,120]
[358176750,1744816346609,-604.56,0.00052876,120]
[358176751,1744816346618,-500.0,0.00052876,120]
[358176752,1744816346627,-1283.85,0.00052876,120]
[358176753,1744816346636,-155.383724,0.00052876,120]
[358176754,1744816346646,-500.0,0.00052876,120]
[358176755,1744816346656,-905.89,0.00052876,120]
[358176756,1744816346666,-748.27,0.00052876,120]
[358176757,1744816346677,-1176.6,0.00052876,120]
[358176758,1744816346686,-500.0,0.00052876,120]
[358176759,1744816346697,-500.0,0.00052876,120]
[358176760,1744816346707,-500.0,0.00052876,120]
[358176761,1744816346716,-434.88,0.00052876,120]
[358176762,1744816346726,-866.49,0.00052876,120]
[358176763,1744816346736,-500.0,0.00052876,120]
[358176764,1744816346746,-967.07,0.00052876,120]
[358176765,1744816346757,-500.0,0.00052876,120]
[358176766,1744816346774,-500.0,0.00052876,120]
[358176767,1744816346784,-500.0,0.00052876,120]
[358176768,1744816346794,-500.0,0.00052876,120]
[358176769,1744816346805,-500.0,0.00052876,120]
[358176770,1744816346815,-500.0,0.00052876,120]
[358176771,1744816346826,-500.0,0.00052876,120]
[358176772,1744816346836,-500.0,0.00052876,120]
[358176773,1744816346846,-500.0,0.00052876,120]
[358176774,1744816346856,-500.0,0.00052876,120]
[358176775,1744816346866,-500.0,0.00052876,120]
[358176776,1744816346876,-500.0,0.00052876,120]
[358176777,1744816346886,-671.83,0.00052876,120]
[358176778,1744816346896,-500.0,0.00052876,120]
[358176779,1744816346906,-500.0,0.00052876,120]
[358176780,1744816346916,-1850.78,0.00052876,120]
[358176781,1744816346926,-500.0,0.00052876,120]
[358176782,1744816346936,-1800.53,0.00052876,120]
[358176783,1744816346950,-155.383724,0.00052876,120]
[358176784,1744816346960,-500.0,0.00052876,120]
[358176785,1744816346969,-500.0,0.00052876,120]
[358176786,1744816346981,-500.0,0.00052876,120]
[358176787,1744816346991,-703.86,0.00052876,120]
[358176788,1744816347000,-500.0,0.00052876,120]
[358176789,1744816347010,-936.84,0.00052876,120]
[358176790,1744816347023,-500.0,0.00052876,120]
[358176791,1744816347034,-546.57,0.00052876,120]
[358176792,1744816347045,-500.0,0.00052876,120]
[358176793,1744816347054,-1495.21,0.00052876,120]
[358176794,1744816347064,-1191.58,0.00052876,35]
[358176795,1744816347074,-929.38,0.00052876,120]
[358176796,1744816347083,-717.11,0.00052876,30]
[358176797,1744816347093,-500.0,0.00052876,120]
[358176798,1744816347102,-781.09,0.00052876,120]
[358176799,1744816347112,-500.0,0.00052876,120]
[358176800,1744816347122,-500.0,0.00052876,120]
[358176801,1744816347131,-500.0,0.00052876,120]
[358176802,1744816347140,-1870.74,0.00052876,120]
[358176803,1744816347150,-500.0,0.00052876,120]
[358176804,1744816347159,-961.01,0.00052876,120]
[358176805,1744816347168,-500.0,0.00052876,120]
[358176806,1744816347177,-12177.31,0.00052876,120]
[358176807,1744816347187,-1524.54,0.00052876,120]
[358176808,1744816347196,-3102.96,0.00052876,120]
[358176809,1744816347205,-155.383724,0.00052876,120]
[358176810,1744816347215,-500.0,0.00052876,120]
[358176811,1744816347224,-820.23,0.00052876,120]
[358176812,1744816347233,-500.0,0.00052876,120]
[358176813,1744816347242,-500.0,0.00052876,120]
[358176814,1744816347251,-742.51,0.00052876,120]
[358176815,1744816347260,-845.8,0.00052876,120]
[358176816,1744816347271,-590.88929536,0.00052876,120]
[358176817,1744816347280,-707.69,0.00052876,120]
[358176818,1744816347289,-522.09,0.00052876,120]
[358176819,1744816347299,-500.0,0.00052876,120]
[358176820,1744816347309,-769.64,0.00052876,120]
[358176821,1744816347318,-500.0,0.00052876,120]
[358176822,1744816347328,-500.0,0.00052876,120]
[358176823,1744816347337,-2026.36000436,0.00052876,120]
[358176824,1744816347346,-2230.545501,0.00052876,120]
[358176825,1744816347356,-500.0,0.00052876,120]
[358176826,1744816347365,-500.0,0.00052876,120]
[358176827,1744816347375,-500.0,0.00052876,2]
[358176828,1744816347384,-500.0,0.00052876,120]
[358176829,1744816347394,-500.0,0.00052876,120]
[358176830,1744816347403,-1217.91,0.00052876,120]
[358176831,1744816347413,-500.0,0.00052876,120]
[358176832,1744816347422,-500.0,0.00052876,120]
[358176833,1744816347432,-1200.0,0.00052876,120]
[358176834,1744816347442,-500.0,0.00052876,120]
[358176835,1744816347451,-1200.0,0.000529,2]
[358176836,1744816347460,-250.0,0.00052921,10]
[358176837,1744816347469,-1150.0,0.00053,2]
[358176838,1744816347479,-166.0,0.00053,120]
[358176839,1744816347488,-151.0,0.00053123,120]
[358176840,1744816347498,-500.0,0.0005315,120]
[358176841,1744816347580,-539.95674259,0.0005315,120]
[358176842,1744816347590,-507.85,0.0005315,2]
[358176843,1744816347600,-500.0,0.0005315,120]
[358176844,1744816347610,-500.0,0.0005315,2]
[358176845,1744816347619,-500.0,0.0005315,120]
[358176846,1744816347629,-1354.34,0.0005315,120]
[358176847,1744816347639,-634.25945197,0.0005315,120]
[358176848,1744816347649,-500.0,0.0005315,120]
[358176849,1744816347658,-500.0,0.0005315,120]
[358176850,1744816347668,-500.0,0.0005315,120]
[358176851,1744816347678,-500.0,0.0005315,120]
[358176852,1744816347687,-500.0,0.0005315,120]
[358176853,1744816347697,-524.21,0.0005315,120]
[358176854,1744816347707,-500.0,0.0005315,120]
[358176855,1744816347716,-754.91,0.0005315,120]
[358176856,1744816347726,-795.37,0.0005315,120]
[358176857,1744816347736,-500.0,0.0005315,120]
[358176858,1744816347745,-500.0,0.0005315,120]
[358176859,1744816347755,-500.0,0.0005315,120]
[358176860,1744816347767,-879.05,0.0005315,120]
[358176861,1744816347776,-500.0,0.0005315,120]
[358176862,1744816347786,-173.72524099,0.0005315,120]
[358176863,1744816347796,-795.56,0.0005315,120]
[358176864,1744816347806,-691.53,0.0005315,120]
[358176865,1744816347816,-500.0,0.0005315,120]
[358176866,1744816347826,-500.0,0.0005315,120]
[358176867,1744816347835,-617.85993593,0.0005315,120]
[358176868,1744816347845,-500.0,0.0005315,120]
[358176869,1744816347854,-500.0,0.0005315,120]
[358176870,1744816347864,-500.0,0.0005315,120]
[358176871,1744816347873,-500.0,0.0005315,120]
[358176872,1744816347883,-500.0,0.0005315,120]
[358176873,1744816347892,-500.0,0.0005315,120]
[358176874,1744816347901,-1105.05,0.0005315,120]
[358176875,1744816347911,-500.0,0.0005315,120]
[358176876,1744816347921,-500.0,0.0005315,120]
[358176877,1744816347931,-500.0,0.0005315,120]
[358176878,1744816347942,-1002.17,0.0005315,120]
[358176879,1744816347952,-740.53,0.0005315,120]
[358176880,1744816347961,-500.0,0.0005315,7]
[358176881,1744816347971,-500.0,0.0005315,120]
[358176882,1744816347982,-500.0,0.0005315,120]
[358176883,1744816347991,-500.0,0.0005315,120]
[358176884,1744816348001,-500.0,0.0005315,120]
[358176885,1744816348010,-563.62,0.0005315,30]
[358176886,1744816348024,-500.0,0.0005315,120]
[358176887,1744816348034,-500.0,0.0005315,120]
[358176888,1744816348044,-152.21215711,0.0005315,120]
[358176889,1744816348053,-500.0,0.0005315,120]
[358176890,1744816348063,-1000.0,0.0005315,120]
[358176891,1744816348073,-753.23,0.0005315,120]
[358176892,1744816348083,-500.0,0.0005315,120]
[358176893,1744816348093,-500.0,0.0005315,120]
[358176894,1744816348102,-500.0,0.0005315,120]
[358176895,1744816348112,-500.0,0.0005315,120]
[358176896,1744816348122,-500.0,0.0005315,120]
[358176897,1744816348131,-470.57986568,0.0005315,120]
[358176898,1744816348141,-500.0,0.0005315,120]
[358176899,1744816348150,-500.0,0.0005315,120]
[358176900,1744816348160,-693.95,0.0005315,120]
[358176901,1744816348169,-500.0,0.0005315,120]
[358176902,1744816348179,-500.0,0.0005315,120]
[358176903,1744816348188,-500.0,0.0005315,14]
[358176904,1744816348199,-500.0,0.0005315,120]
[358176905,1744816348210,-500.0,0.0005315,120]
[358176906,1744816348220,-1260.37,0.0005315,120]
[358176907,1744816348230,-500.0,0.0005315,120]
[358176908,1744816348240,-500.0,0.0005315,120]
[358176909,1744816348250,-758.9,0.0005315,120]
[358176910,1744816348259,-1826.89,0.0005315,120]
[358176911,1744816348270,-500.0,0.0005315,120]
[358176912,1744816348280,-500.0,0.0005315,120]
[358176913,1744816348289,-500.0,0.0005315,120]
[358176914,1744816348299,-500.0,0.0005315,120]
[358176915,1744816348309,-500.0,0.0005315,120]
[358176916,1744816348318,-500.0,0.0005315,7]
[358176917,1744816348328,-500.0,0.0005315,120]
[358176918,1744816348338,-500.0,0.0005315,120]
[358176919,1744816348348,-685.02,0.0005315,120]
[358176920,1744816348357,-500.0,0.0005315,120]
[358176921,1744816348366,-500.0,0.0005315,120]
[358176922,1744816348376,-500.0,0.0005315,120]
[358176923,1744816348385,-500.0,0.0005315,120]
[358176924,1744816348395,-500.0,0.0005315,120]
[358176925,1744816348404,-500.0,0.0005315,120]
[358176926,1744816348414,-500.0,0.0005315,120]
[358176927,1744816348423,-500.0,0.0005315,120]
[358176928,1744816348433,-500.0,0.0005315,120]
[358176929,1744816348442,-500.0,0.0005315,120]
[358176930,1744816348452,-500.0,0.0005315,120]
[358176931,1744816348461,-667.82,0.0005315,120]
[358176932,1744816348471,-500.0,0.0005315,120]
[358176933,1744816348480,-500.0,0.0005315,120]
[358176934,1744816348490,-500.0,0.0005315,120]
[358176935,1744816348499,-500.0,0.0005315,120]
[358176936,1744816348509,-500.0,0.0005315,120]
[358176937,1744816348520,-500.0,0.0005315,120]
[358176938,1744816348529,-1108.66,0.0005315,120]
[358176939,1744816348539,-500.0,0.0005315,120]
[358176940,1744816348548,-500.0,0.0005315,120]
[358176941,1744816348558,-500.0,0.0005315,120]
[358176942,1744816348568,-500.0,0.0005315,120]
[358176943,1744816348577,-687.69,0.0005315,120]
[358176944,1744816348587,-500.0,0.0005315,120]
[358176945,1744816348596,-500.0,0.0005315,120]
[358176946,1744816348605,-1033.16,0.0005315,120]
[358176947,1744816348615,-500.0,0.0005315,120]
[358176948,1744816348624,-1795.89,0.0005315,120]
[358176949,1744816348634,-500.0,0.0005315,120]
[358176950,1744816348643,-500.0,0.0005315,120]
[358176951,1744816348652,-500.0,0.0005315,120]
[358176952,1744816348662,-583.59,0.0005315,120]
[358176953,1744816348672,-500.0,0.0005315,120]
[358176954,1744816348682,-500.0,0.0005315,120]
[358176955,1744816348691,-500.0,0.0005315,120]
[358176956,1744816348701,-500.0,0.0005315,120]
[358176957,1744816348711,-2030.25,0.0005315,120]
[358176958,1744816348721,-500.0,0.0005315,120]
[358176959,1744816348731,-500.0,0.0005315,120]
[358176960,1744816348741,-500.0,0.0005315,120]
[358176961,1744816348754,-500.0,0.0005315,120]
[358176962,1744816348763,-818.2,0.0005315,120]
[358176963,1744816348773,-500.0,0.0005315,120]
[358176964,1744816348782,-500.0,0.0005315,120]
[358176965,1744816348791,-500.0,0.0005315,120]
[358176966,1744816348800,-500.0,0.0005315,120]
[358176967,1744816348809,-500.0,0.0005315,120]
[358176968,1744816348819,-2000.0,0.0005315,2]
[358176969,1744816348828,-500.0,0.0005315,120]
[358176970,1744816348838,-771.35,0.0005315,120]
[358176971,1744816348848,-500.0,0.0005315,120]
[358176972,1744816348857,-500.0,0.0005315,120]
[358176973,1744816348867,-500.0,0.0005315,120]
[358176974,1744816348877,-500.0,0.0005315,120]
[358176975,1744816348886,-500.0,0.0005315,120]
[358176976,1744816348895,-500.0,0.0005315,120]
[358176977,1744816348905,-500.0,0.0005315,120]
[358176978,1744816348915,-904.17,0.0005315,120]
[358176979,1744816348925,-500.0,0.0005315,120]
[358176980,1744816348935,-500.0,0.0005315,120]
[358176981,1744816348948,-500.0,0.0005315,120]
[358176982,1744816348958,-500.0,0.0005315,120]
[358176983,1744816348968,-980.77,0.0005315,120]
[358176984,1744816348979,-500.0,0.0005315,120]
[358176985,1744816348989,-500.0,0.0005315,120]
[358176986,1744816348998,-500.0,0.0005315,120]
[358176987,1744816349008,-569.67507744,0.0005315,120]
[358176988,1744816349021,-500.0,0.0005315,120]
[358176989,1744816349032,-500.0,0.0005315,120]
[358176990,1744816349041,-500.0,0.0005315,120]
[358176991,1744816349052,-500.0,0.0005315,120]
[358176992,1744816349062,-1864.604686,0.0005315,120]
[358176993,1744816349071,-2000.0,0.0005315,120]
[358176994,1744816349081,-500.0,0.0005315,120]
[358176995,1744816349090,-500.0,0.0005315,120]
[358176996,1744816349099,-302.598419,0.0005315,120]
[358176997,1744816349108,-756.77,0.0005315,120]
[358176998,1744816349118,-500.0,0.0005315,120]
[358176999,1744816349127,-500.0,0.0005315,120]
[358177000,1744816349137,-1324.33,0.0005315,120]
[358177001,1744816349147,-501.63,0.0005315,120]
[358177002,1744816349156,-983.87,0.0005315,120]
[358177003,1744816349166,-774.19,0.0005315,120]
[358177004,1744816349175,-500.0,0.0005315,120]
[358177005,1744816349185,-519.62,0.0005315,120]
[358177006,1744816349194,-500.0,0.0005315,120]
[358177007,1744816349203,-500.0,0.0005315,120]
[358177008,1744816349214,-2150.43,0.0005315,120]
[358177009,1744816349223,-500.0,0.0005315,120]
[358177010,1744816349232,-1188.94,0.0005315,120]
[358177011,1744816349241,-500.0,0.0005315,3]
[358177012,1744816349251,-695.81,0.0005315,118]
[358177013,1744816349260,-2664.25,0.0005315,120]
[358177014,1744816349269,-500.0,0.0005315,120]
[358177015,1744816349280,-604.56,0.0005315,120]
[358177016,1744816349290,-500.0,0.0005315,120]
[358177017,1744816349299,-1283.85,0.0005315,120]
[358177018,1744816349308,-155.383724,0.0005315,120]
[358177019,1744816349317,-500.0,0.0005315,120]
[358177020,1744816349327,-905.89,0.0005315,120]
[358177021,1744816349336,-748.27,0.0005315,120]
[358177022,1744816349345,-1176.6,0.0005315,120]
[358177023,1744816349354,-500.0,0.0005315,120]
[358177024,1744816349363,-500.0,0.0005315,120]
[358177025,1744816349371,-627.88882815,0.0005315,120]
[358177026,1744816349381,-866.49,0.0005315,120]
[358177027,1744816349390,-500.0,0.0005315,120]
[358177028,1744816349400,-967.07,0.0005315,120]
[358177029,1744816349409,-542.90560828,0.0005315,120]
[358177030,1744816349417,-500.0,0.0005315,120]
[358177031,1744816349426,-500.0,0.0005315,120]
[358177032,1744816349435,-261.35099275,0.0005315,120]
[358177033,1744816349444,-416.48754112,0.0005315,120]
[358177034,1744816349453,-500.0,0.0005315,120]
[358177035,1744816349463,-500.0,0.0005315,120]
[358177036,1744816349472,-500.0,0.0005315,120]
[358177037,1744816349481,-342.01663537,0.0005315,120]
[358177038,1744816349491,-500.0,0.0005315,120]
[358177039,1744816349500,-500.0,0.0005315,120]
[358177040,1744816349510,-500.0,0.0005315,120]
[358177041,1744816349519,-671.83,0.0005315,120]
[358177042,1744816349528,-500.0,0.0005315,120]
[358177043,1744816349537,-500.0,0.0005315,120]
[358177044,1744816349546,-1850.78,0.0005315,120]
[358177045,1744816349556,-500.0,0.0005315,120]
[358177046,1744816349566,-1800.53,0.0005315,120]
[358177047,1744816349575,-155.383724,0.0005315,120]
[358177048,1744816349584,-360.37883139,0.0005315,120]
[358177049,1744816349594,-500.0,0.0005315,120]
[358177050,1744816349604,-179.43888605,0.0005315,120]
[358177051,1744816349614,-703.86,0.0005315,120]
[358177052,1744816349624,-500.0,0.0005315,120]
[358177053,1744816349634,-936.84,0.0005315,120]
[358177054,1744816349644,-500.0,0.0005315,120]
[358177055,1744816349653,-546.57,0.0005315,120]
[358177056,1744816349663,-500.0,0.0005315,120]
[358177057,1744816349673,-1495.21,0.0005315,120]
[358177058,1744816349683,-1191.58,0.0005315,35]
[358177059,1744816349694,-929.38,0.0005315,120]
[358177060,1744816349703,-717.11,0.0005315,30]
[358177061,1744816349713,-500.0,0.0005315,120]
[358177062,1744816349723,-781.09,0.0005315,120]
[358177063,1744816349733,-500.0,0.0005315,120]
[358177064,1744816349743,-500.0,0.0005315,120]
[358177065,1744816349753,-500.0,0.0005315,120]
[358177066,1744816349763,-1870.74,0.0005315,120]
[358177067,1744816349775,-500.0,0.0005315,120]
[358177068,1744816349784,-961.01,0.0005315,120]
[358177069,1744816349795,-500.0,0.0005315,120]
[358177070,1744816349805,-12177.31,0.0005315,120]
[358177071,1744816349815,-1524.54,0.0005315,120]
[358177072,1744816349825,-3102.96,0.0005315,120]
[358177073,1744816349835,-155.383724,0.0005315,120]
[358177074,1744816349845,-313.90142887,0.0005315,120]
[358177075,1744816349854,-820.23,0.0005315,120]
[358177076,1744816349864,-500.0,0.0005315,120]
[358177077,1744816349873,-500.0,0.0005315,120]
[358177078,1744816349882,-742.51,0.0005315,120]
[358177079,1744816349892,-845.8,0.0005315,120]
[358177080,1744816349901,-164.189453,0.0005315,120]
[358177081,1744816349911,-707.69,0.0005315,120]
[358177082,1744816349921,-522.09,0.0005315,120]
[358177083,1744816349930,-500.0,0.0005315,120]
[358177084,1744816349942,-769.64,0.0005315,120]
[358177085,1744816349952,-500.0,0.0005315,120]
[358177086,1744816349961,-500.0,0.0005315,120]
[358177087,1744816349971,-2230.545501,0.0005315,120]
[358177088,1744816349982,-500.0,0.0005315,120]
[358177089,1744816349992,-500.0,0.0005315,120]
[358177090,1744816350002,-204.46410859,0.0005315,2]
[358177091,1744816350010,-500.0,0.0005315,120]
[358177092,1744816350026,-500.0,0.0005315,120]
[358177093,1744816350035,-1217.91,0.0005315,120]
[358177094,1744816350045,-500.0,0.0005315,120]
[358177095,1744816350055,-500.0,0.0005315,120]
[358177096,1744816350064,-1200.0,0.0005315,120]
[358177097,1744816350074,-500.0,0.0005315,120]
[358177098,1744816350083,-200.0,0.00053253,2]
[358177099,1744816350092,-200.0,0.00053253,2]
[358177100,1744816350101,-200.0,0.00053253,2]
[358177101,1744816350111,-200.0,0.00053253,2]
[358177102,1744816350121,-200.0,0.00053253,2]
[358177103,1744816350131,-200.0,0.00053253,2]
[358177104,1744816350139,-200.0,0.00053253,2]
[358177105,1744816350149,-200.0,0.00053253,2]
[358177106,1744816350158,-200.0,0.00053253,2]
[358177107,1744816350167,-200.0,0.00053253,2]
[358177108,1744816350176,-200.0,0.00053253,2]
[358177109,1744816350186,-200.0,0.00053253,2]
[358177110,1744816350196,-200.0,0.00053253,2]
[358177111,1744816350206,-200.0,0.00053253,2]
[358177112,1744816350216,-200.0,0.00053253,2]
[358177113,1744816350226,-200.0,0.00053253,2]
[358177114,1744816350236,-200.0,0.00053253,2]
[358177115,1744816350245,-200.0,0.00053253,2]
[358177116,1744816350255,-200.0,0.00053253,2]
[358177117,1744816350264,-200.0,0.00053253,2]
[358177118,1744816350277,-200.0,0.00053253,2]
[358177119,1744816350286,-200.0,0.00053253,2]
[358177120,1744816350295,-200.0,0.00053253,2]
[358177121,1744816350304,-200.0,0.00053253,2]
[358177122,1744816350313,-200.0,0.00053253,2]
[358177123,1744816350323,-200.0,0.00053253,2]
[358177124,1744816350331,-200.0,0.00053253,2]
[358177125,1744816350340,-200.0,0.00053253,2]
[358177126,1744816350348,-200.0,0.00053253,2]
[358177127,1744816350358,-200.0,0.00053253,2]
[358177128,1744816350367,-200.0,0.00053253,2]
[358177129,1744816350376,-200.0,0.00053253,2]
[358177130,1744816350386,-200.0,0.00053253,2]
[358177131,1744816350395,-200.0,0.00053253,2]
[358177132,1744816350403,-284.0,0.00053253,2]
[358177133,1744816350413,-650.0,0.000534,2]
[358177134,1744816350421,-151.0,0.00053406,107]
[358177135,1744816350430,-500.0,0.00053424,120]
[358177136,1744816350439,-507.85,0.00053424,2]
[358177137,1744816350448,-500.0,0.00053424,120]
[358177138,1744816350457,-500.0,0.00053424,2]
[358177139,1744816350466,-500.0,0.00053424,120]
[358177140,1744816350476,-1354.34,0.00053424,120]
[358177141,1744816350485,-500.0,0.00053424,120]
[358177142,1744816350494,-500.0,0.00053424,120]
[358177143,1744816350504,-500.0,0.00053424,120]
[358177144,1744816350514,-500.0,0.00053424,120]
[358177145,1744816350526,-500.0,0.00053424,120]
[358177146,1744816350536,-524.21,0.00053424,120]
[358177147,1744816350546,-500.0,0.00053424,120]
[358177148,1744816350556,-754.91,0.00053424,120]
[358177149,1744816350566,-795.37,0.00053424,120]
[358177150,1744816350575,-500.0,0.00053424,120]
[358177151,1744816350585,-500.0,0.00053424,120]
[358177152,1744816350594,-500.0,0.00053424,120]
[358177153,1744816350603,-879.05,0.00053424,120]
[358177154,1744816350613,-500.0,0.00053424,120]
[358177155,1744816350623,-795.56,0.00053424,120]
[358177156,1744816350632,-691.53,0.00053424,120]
[358177157,1744816350642,-500.0,0.00053424,120]
[358177158,1744816350652,-500.0,0.00053424,120]
[358177159,1744816350661,-500.0,0.00053424,120]
[358177160,1744816350671,-500.0,0.00053424,120]
[358177161,1744816350680,-500.0,0.00053424,120]
[358177162,1744816350689,-500.0,0.00053424,120]
[358177163,1744816350698,-500.0,0.00053424,120]
[358177164,1744816350708,-500.0,0.00053424,120]
[358177165,1744816350717,-1105.05,0.00053424,120]
[358177166,1744816350727,-500.0,0.00053424,120]
[358177167,1744816350736,-500.0,0.00053424,120]
[358177168,1744816350745,-500.0,0.00053424,120]
[358177169,1744816350755,-1002.17,0.00053424,120]
[358177170,1744816350764,-740.53,0.00053424,120]
[358177171,1744816350775,-151.68212752,0.00053424,7]
[358177172,1744816350785,-500.0,0.00053424,120]
[358177173,1744816350795,-500.0,0.00053424,120]
[358177174,1744816350804,-500.0,0.00053424,120]
[358177175,1744816350813,-500.0,0.00053424,120]
[358177176,1744816350823,-563.62,0.00053424,30]
[358177177,1744816350832,-500.0,0.00053424,120]
[358177178,1744816350841,-500.0,0.00053424,120]
[358177179,1744816350850,-500.0,0.00053424,120]
[358177180,1744816350859,-1000.0,0.00053424,120]
[358177181,1744816350869,-753.23,0.00053424,120]
[358177182,1744816350878,-500.0,0.00053424,120]
[358177183,1744816350888,-500.0,0.00053424,120]
[358177184,1744816350899,-500.0,0.00053424,120]
[358177185,1744816350908,-500.0,0.00053424,120]
[358177186,1744816350918,-500.0,0.00053424,120]
[358177187,1744816350927,-500.0,0.00053424,120]
[358177188,1744816350939,-500.0,0.00053424,120]
[358177189,1744816350950,-693.95,0.00053424,120]
[358177190,1744816350960,-500.0,0.00053424,120]
[358177191,1744816350970,-500.0,0.00053424,120]
[358177192,1744816350981,-500.0,0.00053424,14]
[358177193,1744816350991,-500.0,0.00053424,120]
[358177194,1744816351000,-500.0,0.00053424,120]
[358177195,1744816351010,-1260.37,0.00053424,120]
[358177196,1744816351022,-500.0,0.00053424,120]
[358177197,1744816351032,-522.51606048,0.00053424,120]
[358177198,1744816351043,-758.9,0.00053424,120]
[358177199,1744816351052,-1826.89,0.00053424,120]
[358177200,1744816351061,-384.51,0.00053424,120]
[358177201,1744816351070,-500.0,0.00053424,120]
[358177202,1744816351079,-500.0,0.00053424,120]
[358177203,1744816351088,-500.0,0.00053424,120]
[358177204,1744816351096,-500.0,0.00053424,120]
[358177205,1744816351106,-500.0,0.00053424,7]
[358177206,1744816351114,-500.0,0.00053424,120]
[358177207,1744816351123,-500.0,0.00053424,120]